bitfinex/quotes_BTCUSD_20241003
["timestamp","ask_amount","ask_price","bid_price","bid_amount"]
[1727922927564,0.54268197,61282.0,61281.0,0.002636]
[1727922928000,0.56568197,61282.0,61281.0,0.002636]
[1727922937212,0.66385197,61282.0,61281.0,0.002636]
[1727922937665,0.3990764,61282.0,61281.0,0.002636]
[1727922937878,0.52125807,61282.0,61281.0,0.002636]
[1727922938332,0.3990764,61282.0,61281.0,0.002636]
[1727922938724,0.49681883,61282.0,61281.0,0.002636]
[1727922939152,0.3990764,61282.0,61281.0,0.002636]
[1727922939630,0.49681879,61282.0,61281.0,0.002636]
[1727922940063,0.3990764,61282.0,61281.0,0.002636]
[1727922940285,0.52125705,61282.0,61281.0,0.002636]
[1727922942073,0.3990764,61282.0,61281.0,0.002636]
[1727922942518,0.4010764,61282.0,61281.0,0.002636]
[1727922943486,0.4010764,61282.0,61267.0,0.000818]
[1727922943487,0.163217,61268.0,61267.0,0.000818]
[1727922943706,0.263217,61268.0,61267.0,0.000818]
[1727922943924,0.27114621,61268.0,61267.0,0.000818]
[1727922945707,0.40472834,61268.0,61267.0,0.000818]
[1727922945946,0.41272834,61268.0,61267.0,0.000818]
[1727922946451,0.40472834,61268.0,61267.0,0.000818]
[1727922946650,0.41272834,61268.0,61267.0,0.000818]
[1727922947438,0.50952834,61268.0,61267.0,0.000818]
[1727922947680,0.5828597,61268.0,61267.0,0.000818]
[1727922947922,0.4860597,61268.0,61267.0,0.000818]
[1727922948179,0.51165066,61268.0,61267.0,0.000818]
[1727922948627,0.4383193,61268.0,61267.0,0.000818]
[1727922948850,0.4303193,61268.0,61267.0,0.000818]
[1727922949347,0.35965131,61268.0,61267.0,0.000818]
[1727922949588,0.29673717,61268.0,61267.0,0.000818]
[1727922950030,0.30673717,61268.0,61267.0,0.000818]
[1727922950253,0.35565131,61268.0,61267.0,0.000818]
[1727922950473,0.34565131,61268.0,61267.0,0.000818]
[1727922950927,0.34965131,61268.0,61267.0,0.000818]
[1727922951368,0.37410838,61268.0,61267.0,0.000818]
[1727922951814,0.30073717,61268.0,61267.0,0.000818]
[1727922952026,0.29673717,61268.0,61267.0,0.000818]
[1727922952454,0.37815334,61268.0,61267.0,0.000818]
[1727922952641,0.30473717,61268.0,61267.0,0.000818]
[1727922952899,0.37016451,61268.0,61267.0,0.000818]
[1727922953365,0.37716451,61268.0,61267.0,0.000818]
[1727922954023,0.40162537,61268.0,61267.0,0.000818]
[1727922954241,0.37603441,61268.0,61267.0,0.000818]
[1727922954734,0.27814621,61268.0,61267.0,0.000818]
[1727922955642,0.40050646,61268.0,61267.0,0.000818]
[1727922957276,0.42609622,61268.0,61267.0,0.000818]
[1727922957930,0.20373597,61268.0,61267.0,0.1823916]
[1727922958154,0.20373597,61268.0,61267.0,0.174118]
[1727922958155,0.04051897,61268.0,61267.0,0.174118]
[1727922958813,0.03351897,61268.0,61267.0,0.174118]
[1727922959034,0.03951897,61268.0,61267.0,0.174118]
[1727922959265,0.20273597,61268.0,61267.0,0.174118]
[1727922961297,0.20273597,61268.0,61267.0,0.2405805]
[1727922961521,0.25171992,61268.0,61267.0,0.2405805]
[1727922961733,0.03951897,61268.0,61267.0,0.2405805]
[1727922962174,0.03951897,61268.0,61267.0,0.4038005]
[1727922962650,0.03951897,61268.0,61267.0,0.2405805]
[1727922962877,0.03951897,61268.0,61267.0,0.4038005]
[1727922963324,0.03951897,61268.0,61267.0,0.2405805]
[1727922964224,0.20273597,61268.0,61267.0,0.174118]
[1727922965546,0.20142997,61268.0,61267.0,0.174118]
[1727922965970,0.2689386,61268.0,61267.0,0.174118]
[1727922966199,0.27093833,61268.0,61267.0,0.174118]
[1727922966642,0.26893833,61268.0,61267.0,0.174118]
[1727922967073,0.27493833,61268.0,61267.0,0.174118]
[1727922967960,0.27493833,61268.0,61267.0,0.076418]
[1727922967961,0.20142997,61268.0,61267.0,0.076418]
[1727922968165,0.29939931,61268.0,61267.0,0.076418]
[1727922969277,0.20142997,61268.0,61267.0,0.076418]
[1727922970603,0.29944943,61268.0,61267.0,0.076418]
[1727922970848,0.13623103,61268.0,61267.0,0.076418]
[1727922971090,0.03821297,61268.0,61267.0,0.170218]
[1727922971323,0.03821297,61268.0,61267.0,0.2362901]
[1727922971797,0.03821297,61268.0,61267.0,0.3995101]
[1727922972462,0.03158976,61268.0,61267.0,0.3995101]
[1727922973152,0.02558976,61268.0,61267.0,0.3995101]
[1727922973615,0.03158976,61268.0,61267.0,0.3995101]
[1727922974537,0.049515,61280.0,61278.0,0.163188]
[1727922974754,0.049515,61280.0,61277.0,0.326385]
[1727922974755,0.049515,61280.0,61279.0,0.338188]
[1727922974970,0.24586599,61281.0,61279.0,0.338188]
[1727922974971,0.000818,61281.0,61280.0,0.163185]
[1727922975211,0.000818,61281.0,61280.0,0.3074571]
[1727922977207,0.001818,61281.0,61280.0,0.3104571]
[1727922977647,0.001818,61281.0,61280.0,0.1472721]
[1727922977648,0.165,61281.0,61280.0,0.1472721]
[1727922977864,0.19058224,61281.0,61280.0,0.1472721]
[1727922978098,0.19058224,61281.0,61280.0,0.0812]
[1727922979029,0.326399,61275.0,61267.0,0.076418]
[1727922979263,0.15986905,61281.0,61267.0,0.076418]
[1727922979264,0.163217,61268.0,61267.0,0.076418]
[1727922979709,0.19668423,61268.0,61267.0,0.076418]
[1727922980167,0.19168423,61268.0,61267.0,0.076418]
[1727922980661,0.19668423,61268.0,61267.0,0.076418]
[1727922981575,0.19668423,61268.0,61267.0,0.000818]
[1727922981811,0.29668423,61268.0,61267.0,0.000818]
[1727922982699,0.29168423,61268.0,61267.0,0.000818]
[1727922982913,0.42193917,61268.0,61267.0,0.001818]
[1727922983384,0.29968423,61268.0,61267.0,0.001818]
[1727922984010,0.42193756,61268.0,61267.0,0.001818]
[1727922984487,0.39634977,61268.0,61267.0,0.001818]
[1727922984705,0.39634835,61268.0,61267.0,0.001818]
[1727922985148,0.39834835,61268.0,61267.0,0.001818]
[1727922985368,0.27609644,61268.0,61267.0,0.001818]
[1727922986053,0.39833037,61268.0,61267.0,0.001818]
[1727922987859,0.42192311,61268.0,61267.0,0.001818]
[1727922988092,0.69051743,61268.0,61267.0,0.001818]
[1727922988319,0.163254,61254.0,61253.0,0.24504799]
[1727922988549,0.51896297,61254.0,61253.0,0.24504799]
[1727922988771,0.16327,61248.0,61247.0,0.000818]
[1727922988991,0.37005981,61248.0,61247.0,0.000818]
[1727922989218,0.29673881,61248.0,61247.0,0.000818]
[1727922989434,0.30450584,61248.0,61247.0,0.000818]
[1727922989663,0.35336901,61248.0,61247.0,0.000818]
[1727922989882,0.30450584,61248.0,61247.0,0.000818]
[1727922990555,0.36235082,61248.0,61247.0,0.000818]
[1727922991015,0.31350584,61248.0,61247.0,0.000818]
[1727922997825,0.33910659,61248.0,61247.0,0.000818]
[1727923001233,0.20563778,61248.0,61247.0,0.079918]
[1727923002186,0.19663778,61248.0,61247.0,0.079918]
[1727923002427,0.20463778,61248.0,61247.0,0.079918]
[1727923002881,0.19663778,61248.0,61247.0,0.079918]
[1727923003112,0.19863778,61248.0,61247.0,0.079918]
[1727923004167,0.19863778,61248.0,61247.0,0.1042383]
[1727923004397,0.19863778,61248.0,61247.0,0.079918]
[1727923005313,0.17303703,61248.0,61247.0,0.079918]
[1727923006457,0.17103703,61248.0,61247.0,0.079918]
[1727923006928,0.17703703,61248.0,61247.0,0.079918]
[1727923007975,0.17103703,61248.0,61247.0,0.079918]
[1727923008399,0.20063603,61248.0,61247.0,0.079918]
[1727923011011,0.20116996,61248.0,61247.0,0.079918]
[1727923012177,0.33463877,61248.0,61247.0,0.000818]
[1727923012842,0.33063877,61248.0,61247.0,0.000818]
[1727923013309,0.33863877,61248.0,61247.0,0.000818]
[1727923014628,0.31303977,61248.0,61247.0,0.000818]
[1727923015107,0.30503977,61248.0,61247.0,0.000818]
[1727923015332,0.31303977,61248.0,61247.0,0.000818]
[1727923017819,0.33864028,61248.0,61247.0,0.000818]
[1727923019257,0.43864028,61248.0,61247.0,0.000818]
[1727923021785,0.30517147,61248.0,61247.0,0.000818]
[1727923022014,0.20517147,61248.0,61247.0,0.0330346]
[1727923022241,0.20517147,61248.0,61247.0,0.1099346]
[1727923022487,0.19717147,61248.0,61247.0,0.077718]
[1727923024067,0.20517147,61248.0,61247.0,0.077718]
[1727923024292,0.17957096,61248.0,61247.0,0.077718]
[1727923024505,0.17157096,61248.0,61247.0,0.0946598]
[1727923024726,0.17157096,61248.0,61247.0,0.077718]
[1727923025154,0.41103977,61248.0,61247.0,0.000818]
[1727923025398,0.27757096,61248.0,61247.0,0.000818]
[1727923025612,0.27157096,61248.0,61247.0,0.000818]
[1727923026048,0.27757096,61248.0,61247.0,0.000818]
[1727923027161,0.17757096,61248.0,61247.0,0.000818]
[1727923027379,0.22653124,61248.0,61247.0,0.000818]
[1727923027601,0.20317109,61248.0,61247.0,0.000818]
[1727923028262,0.20317109,61248.0,61247.0,0.171218]
[1727923028494,0.20317109,61248.0,61247.0,0.1883398]
[1727923028495,0.03990109,61248.0,61247.0,0.1883398]
[1727923028718,0.03990109,61248.0,61247.0,0.3516128]
[1727923028959,0.03990109,61248.0,61247.0,0.1883398]
[1727923029408,0.20317109,61248.0,61247.0,0.1883398]
[1727923029637,0.20317109,61248.0,61247.0,0.171218]
[1727923030311,0.19717109,61248.0,61247.0,0.079018]
[1727923030574,0.29509165,61248.0,61247.0,0.000818]
[1727923030790,0.19717109,61248.0,61247.0,0.000818]
[1727923031222,0.29717109,61248.0,61247.0,0.000818]
[1727923032140,0.30317109,61248.0,61247.0,0.000818]
[1727923032620,0.45005194,61248.0,61247.0,0.000818]
[1727923032819,0.30317109,61248.0,61247.0,0.000818]
[1727923033717,0.45005194,61248.0,61247.0,0.000818]
[1727923034558,0.42445181,61248.0,61247.0,0.000818]
[1727923035205,0.41845181,61248.0,61247.0,0.000818]
[1727923035871,0.27157096,61248.0,61247.0,0.000818]
[1727923036548,0.27957096,61248.0,61247.0,0.000818]
[1727923037053,0.27157096,61248.0,61247.0,0.000818]
[1727923037491,0.27957096,61248.0,61247.0,0.000818]
[1727923037709,0.30517282,61248.0,61247.0,0.000818]
[1727923039501,0.30717282,61248.0,61247.0,0.000818]
[1727923039745,0.30517282,61248.0,61247.0,0.000818]
[1727923042694,0.30495405,61248.0,61247.0,0.000818]
[1727923042937,0.30508401,61248.0,61247.0,0.000818]
[1727923044594,0.27948215,61248.0,61247.0,0.000818]
[1727923044871,0.42655492,61248.0,61247.0,0.000818]
[1727923045088,0.42655511,61248.0,61247.0,0.000818]
[1727923045531,0.27948215,61248.0,61247.0,0.000818]
[1727923047746,0.28148215,61248.0,61247.0,0.000818]
[1727923047970,0.30708449,61248.0,61247.0,0.000818]
[1727923048192,0.30695453,61248.0,61247.0,0.000818]
[1727923048877,0.30495453,61248.0,61247.0,0.000818]
[1727923050456,0.30602279,61248.0,61247.0,0.000818]
[1727923053800,0.39374015,61248.0,61247.0,0.000818]
[1727923054727,0.36813781,61248.0,61247.0,0.000818]
[1727923057805,0.39374012,61248.0,61247.0,0.000818]
[1727923063510,0.39349313,61248.0,61247.0,0.000818]
[1727923064637,0.37089082,61248.0,61247.0,0.001818]
[1727923067023,0.370132,61248.0,61247.0,0.001818]
[1727923067725,0.39573448,61248.0,61247.0,0.001818]
[1727923068870,0.39773448,61248.0,61247.0,0.001818]
[1727923069539,0.72794377,61248.0,61247.0,0.001818]
[1727923069754,0.94902583,61248.0,61247.0,0.001818]
[1727923069978,0.90451377,61248.0,61247.0,0.001818]
[1727923070644,0.89651377,61248.0,61247.0,0.001818]
[1727923071522,0.89351377,61248.0,61247.0,0.000818]
[1727923071733,0.89651377,61248.0,61247.0,0.001818]
[1727923072177,0.91051377,61248.0,61247.0,0.001818]
[1727923072602,0.89651377,61248.0,61247.0,0.001818]
[1727923073099,0.89651377,61248.0,61247.0,0.000818]
[1727923073100,0.61360448,61248.0,61247.0,0.000818]
[1727923073289,0.62760448,61248.0,61247.0,0.000818]
[1727923074355,0.62842248,61248.0,61247.0,0.000818]
[1727923074573,0.60282,61248.0,61247.0,0.000818]
[1727923077735,0.62842532,61248.0,61247.0,0.000818]
[1727923079030,1.86832003,61248.0,61247.0,0.000818]
[1727923079247,1.34699103,61248.0,61247.0,0.000818]
[1727923080117,1.32573803,61248.0,61247.0,0.000818]
[1727923080592,1.27589803,61248.0,61247.0,0.000818]
[1727923080780,1.11271132,61248.0,61247.0,0.000818]
[1727923081224,0.62842532,61248.0,61247.0,0.000818]
[1727923082957,0.53672532,61248.0,61247.0,0.000818]
[1727923083464,0.67544032,61248.0,61247.0,0.000818]
[1727923084591,0.649835,61248.0,61247.0,0.000818]
[1727923087777,0.67544058,61248.0,61247.0,0.000818]
[1727923088668,0.83862729,61248.0,61247.0,0.000818]
[1727923088902,0.263302,61236.0,61235.0,0.0798]
[1727923089127,0.26331,61233.0,61230.0,0.0764]
[1727923089345,0.51421407,61233.0,61230.0,0.0764]
[1727923089566,0.54182307,61233.0,61230.0,0.0764]
[1727923090023,0.53982307,61233.0,61230.0,0.0764]
[1727923090246,0.54182307,61233.0,61230.0,0.0764]
[1727923090467,0.55592163,61233.0,61232.0,0.002634]
[1727923091851,0.55192163,61233.0,61232.0,0.001634]
[1727923092073,0.56392163,61233.0,61232.0,0.002634]
[1727923092345,0.55692163,61233.0,61232.0,0.002634]
[1727923092564,0.57092163,61233.0,61232.0,0.002634]
[1727923092815,0.48320427,61233.0,61232.0,0.002634]
[1727923093046,0.46695514,61233.0,61232.0,0.168934]
[1727923093266,0.32001756,61233.0,61232.0,0.168934]
[1727923093491,0.40773492,61233.0,61232.0,0.168934]
[1727923094453,0.52301647,61233.0,61232.0,0.078234]
[1727923095558,0.52501647,61233.0,61232.0,0.078234]
[1727923095768,0.52301647,61233.0,61232.0,0.078234]
[1727923095983,0.52501647,61233.0,61232.0,0.078234]
[1727923096240,0.52301647,61233.0,61232.0,0.078234]
[1727923096913,0.66993852,61233.0,61232.0,0.078234]
[1727923097346,0.66993367,61233.0,61232.0,0.078234]
[1727923097828,0.74157213,61233.0,61232.0,0.078234]
[1727923098325,0.7415692,61233.0,61232.0,0.078234]
[1727923098975,0.7435692,61233.0,61232.0,0.078234]
[1727923099190,0.7485705,61233.0,61232.0,0.078234]
[1727923100160,0.7465705,61233.0,61232.0,0.078234]
[1727923100427,0.74848601,61233.0,61232.0,0.078234]
[1727923101321,0.74849952,61233.0,61232.0,0.078234]
[1727923101973,0.74649952,61233.0,61232.0,0.078234]
[1727923102824,0.59965623,61233.0,61232.0,0.078234]
[1727923104227,0.57404749,61233.0,61232.0,0.078234]
[1727923104638,0.57604749,61233.0,61232.0,0.078234]
[1727923104861,0.72089078,61233.0,61232.0,0.078234]
[1727923105080,0.57404749,61233.0,61232.0,0.078234]
[1727923107431,0.72089549,61233.0,61232.0,0.198934]
[1727923107641,0.74650398,61233.0,61232.0,0.198934]
[1727923108072,0.74653254,61233.0,61232.0,0.198934]
[1727923108240,0.59965598,61233.0,61232.0,0.198934]
[1727923109495,0.59821844,61233.0,61232.0,0.198934]
[1727923113752,0.32358081,61233.0,61232.0,0.198934]
[1727923114394,0.29797232,61233.0,61232.0,0.198934]
[1727923114853,0.4317194,61233.0,61232.0,0.198934]
[1727923116592,0.44503101,61233.0,61232.0,0.198934]
[1727923116804,0.29797232,61233.0,61232.0,0.198934]
[1727923117024,0.29797232,61233.0,61232.0,0.289034]
[1727923117694,0.32357877,61233.0,61232.0,0.289034]
[1727923123804,0.32357877,61233.0,61232.0,0.3179374]
[1727923124439,0.29797232,61233.0,61232.0,0.3179374]
[1727923126533,0.19797232,61233.0,61232.0,0.3179374]
[1727923126777,0.13273286,61233.0,61232.0,0.3179374]
[1727923127027,0.03466232,61233.0,61232.0,0.3179374]
[1727923127260,0.08368651,61233.0,61232.0,0.3179374]
[1727923127468,0.03466232,61233.0,61232.0,0.3179374]
[1727923127687,0.06026682,61233.0,61232.0,0.3179374]
[1727923127900,0.04626682,61233.0,61232.0,0.3169374]
[1727923128108,0.04626682,61233.0,61232.0,0.4802504]
[1727923128352,0.05026682,61233.0,61232.0,0.4802504]
[1727923128577,0.05026682,61233.0,61232.0,0.3169374]
[1727923129013,0.03626682,61233.0,61232.0,0.3169374]
[1727923129417,0.04326682,61233.0,61232.0,0.3169374]
[1727923129842,0.03626682,61233.0,61232.0,0.3169374]
[1727923130300,0.03726682,61233.0,61232.0,0.3169374]
[1727923130497,0.03726682,61233.0,61232.0,0.4802504]
[1727923134308,0.01166232,61233.0,61232.0,0.4802504]
[1727923137730,0.03726572,61233.0,61232.0,0.4802504]
[1727923139495,0.0306034,61233.0,61232.0,0.4802504]
[1727923140153,0.0296034,61233.0,61232.0,0.4802504]
[1727923140589,0.0256034,61233.0,61232.0,0.4802504]
[1727923140803,0.0256034,61233.0,61232.0,0.4822504]
[1727923141256,0.0256034,61233.0,61232.0,0.4802504]
[1727923141480,0.0266034,61233.0,61232.0,0.4842504]
[1727923142801,0.0276034,61233.0,61232.0,0.4842504]
[1727923143261,0.0266034,61233.0,61232.0,0.4842504]
[1727923143730,0.0276034,61233.0,61232.0,0.4842504]
[1727923144343,0.0276034,61233.0,61232.0,0.4802504]
[1727923144344,0.0266034,61233.0,61232.0,0.4802504]
[1727923144767,0.001,61233.0,61232.0,0.4802504]
[1727923144996,0.0496939,61245.0,61236.0,0.489903]
[1727923145223,0.24504799,61241.0,61240.0,0.338291]
[1727923145461,0.00360869,61244.0,61243.0,0.243683]
[1727923145724,0.164092,61247.0,61243.0,0.243683]
[1727923145725,0.164092,61247.0,61244.0,0.0804]
[1727923145934,0.164092,61247.0,61246.0,0.0822]
[1727923146149,0.000818,61247.0,61246.0,0.0822]
[1727923146363,0.000818,61247.0,61246.0,0.1788]
[1727923147031,0.000818,61247.0,61246.0,0.342075]
[1727923147260,0.00468314,61247.0,61246.0,0.41873145]
[1727923147913,0.000818,61247.0,61246.0,0.41873145]
[1727923148146,0.02741393,61247.0,61246.0,0.41873145]
[1727923148368,0.02641393,61247.0,61246.0,0.41873145]
[1727923148608,0.02641393,61247.0,61246.0,0.41973145]
[1727923154413,0.000818,61247.0,61246.0,0.41973145]
[1727923157294,0.000818,61247.0,61246.0,0.25645645]
[1727923157535,0.164091,61247.0,61246.0,0.15985645]
[1727923157761,0.19331018,61247.0,61246.0,0.0832]
[1727923159962,0.03003718,61247.0,61246.0,0.0832]
[1727923160664,0.19331018,61247.0,61246.0,0.0832]
[1727923161113,0.19331018,61247.0,61246.0,0.1176685]
[1727923162907,0.19331018,61247.0,61246.0,0.1166685]
[1727923163427,0.19631018,61247.0,61246.0,0.1166685]
[1727923164627,0.16771352,61247.0,61246.0,0.1166685]
[1727923164856,0.16971352,61247.0,61246.0,0.1166685]
[1727923165308,0.16771352,61247.0,61246.0,0.1166685]
[1727923165528,0.17071352,61247.0,61246.0,0.1166685]
[1727923166920,0.17071352,61247.0,61233.0,0.326616]
[1727923166921,0.163303,61236.0,61232.0,0.122334]
[1727923167163,0.16694336,61235.0,61234.0,0.0825]
[1727923167827,0.1925479,61235.0,61234.0,0.0825]
[1727923168939,0.1955479,61235.0,61234.0,0.0825]
[1727923169392,0.16331,61233.0,61232.0,0.122334]
[1727923169628,0.16723828,61233.0,61232.0,0.122334]
[1727923169846,0.30081411,61233.0,61232.0,0.122334]
[1727923171618,0.30181411,61233.0,61232.0,0.122334]
[1727923171830,0.30581411,61233.0,61232.0,0.122334]
[1727923172472,0.30481411,61233.0,61232.0,0.122334]
[1727923173186,0.30081411,61233.0,61232.0,0.122334]
[1727923173469,0.31481411,61233.0,61232.0,0.122334]
[1727923173677,0.30081411,61233.0,61232.0,0.122334]
[1727923173905,0.35862118,61233.0,61232.0,0.122334]
[1727923174548,0.34962118,61233.0,61232.0,0.122334]
[1727923174762,0.31481411,61233.0,61232.0,0.122334]
[1727923175189,0.32881411,61233.0,61232.0,0.122334]
[1727923175402,0.31481411,61233.0,61232.0,0.122334]
[1727923175845,0.32881411,61233.0,61232.0,0.122334]
[1727923176064,0.42881411,61233.0,61232.0,0.122334]
[1727923176942,0.41481411,61233.0,61232.0,0.122334]
[1727923177549,0.40081411,61233.0,61232.0,0.122334]
[1727923177731,0.44042186,61233.0,61232.0,0.122334]
[1727923178096,0.42642186,61233.0,61232.0,0.122334]
[1727923178302,0.44042186,61233.0,61232.0,0.122334]
[1727923178947,0.45442186,61233.0,61232.0,0.122334]
[1727923179774,0.44042186,61233.0,61232.0,0.122334]
[1727923180015,0.45442186,61233.0,61232.0,0.122334]
[1727923180406,0.42642186,61233.0,61232.0,0.122334]
[1727923180614,0.44042186,61233.0,61232.0,0.122334]
[1727923181276,0.42642186,61233.0,61232.0,0.122334]
[1727923181474,0.44042186,61233.0,61232.0,0.122334]
[1727923181709,0.45442186,61233.0,61232.0,0.122334]
[1727923182187,0.45642186,61233.0,61232.0,0.122334]
[1727923182788,0.49895131,61233.0,61232.0,0.122334]
[1727923182994,0.45642186,61233.0,61232.0,0.122334]
[1727923183738,0.42842186,61233.0,61232.0,0.122334]
[1727923183980,0.44242186,61233.0,61232.0,0.122334]
[1727923184448,0.41681411,61233.0,61232.0,0.122334]
[1727923185176,0.42881411,61233.0,61232.0,0.122334]
[1727923187645,0.4544225,61233.0,61232.0,0.122334]
[1727923191680,0.4086058,61233.0,61232.0,0.122334]
[1727923192592,0.3946058,61233.0,61232.0,0.122334]
[1727923192844,0.3806058,61233.0,61232.0,0.122334]
[1727923193064,0.3946058,61233.0,61232.0,0.122334]
[1727923194096,0.4086058,61233.0,61232.0,0.122334]
[1727923194830,0.38299741,61233.0,61232.0,0.122334]
[1727923197971,0.40860537,61233.0,61232.0,0.122334]
[1727923199502,0.43160537,61233.0,61232.0,0.122334]
[1727923199751,0.43360537,61233.0,61232.0,0.122334]
[1727923200011,0.49281414,61233.0,61232.0,0.122334]
[1727923200291,0.43360537,61233.0,61232.0,0.122334]
[1727923200728,0.51090537,61233.0,61232.0,0.122334]
[1727923200967,0.68809208,61233.0,61232.0,0.122334]
[1727923201202,0.78570378,61233.0,61232.0,0.122334]
[1727923201441,0.8206074,61233.0,61232.0,0.122334]
[1727923201692,0.83101033,61233.0,61232.0,0.09803064]
[1727923201935,0.85901033,61233.0,61232.0,0.09803064]
[1727923202394,0.7369957,61233.0,61232.0,0.09803064]
[1727923203835,0.7229957,61233.0,61232.0,0.09803064]
[1727923204075,0.7369957,61233.0,61232.0,0.09803064]
[1727923204561,0.69738774,61233.0,61232.0,0.09803064]
[1727923204990,0.71138774,61233.0,61232.0,0.09803064]
[1727923205226,0.69738774,61233.0,61232.0,0.09803064]
[1727923205460,0.68338774,61233.0,61232.0,0.09966664]
[1727923205677,0.68420574,61233.0,61232.0,0.09966664]
[1727923205895,0.71220574,61233.0,61232.0,0.09966664]
[1727923206323,0.69820574,61233.0,61232.0,0.09966664]
[1727923207448,0.71220574,61233.0,61232.0,0.09966664]
[1727923207669,0.71600741,61233.0,61232.0,0.09966664]
[1727923207889,0.72761796,61233.0,61232.0,0.09966664]
[1727923208582,0.87425246,61233.0,61232.0,0.09966664]
[1727923208787,0.88825246,61233.0,61232.0,0.09966664]
[1727923209239,0.88825246,61233.0,61232.0,0.08311828]
[1727923209240,0.74161796,61233.0,61232.0,0.08311828]
[1727923209453,0.52952763,61233.0,61232.0,0.08311828]
[1727923209698,0.58490994,61233.0,61232.0,0.08311828]
[1727923209934,0.3254685,61233.0,61232.0,0.08311828]
[1727923210156,0.41522763,61233.0,61232.0,0.08311828]
[1727923214462,0.38961708,61233.0,61232.0,0.08311828]
[1727923215142,0.37561708,61233.0,61232.0,0.08311828]
[1727923215401,0.38961708,61233.0,61232.0,0.08311828]
[1727923215594,0.37561708,61233.0,61232.0,0.08311828]
[1727923215913,0.38961708,61233.0,61232.0,0.08311828]
[1727923216592,0.37561708,61233.0,61232.0,0.08311828]
[1727923217057,0.36161708,61233.0,61232.0,0.08311828]
[1727923217272,0.48103968,61233.0,61232.0,0.08311828]
[1727923217484,0.37361708,61233.0,61232.0,0.08311828]
[1727923217716,0.37361708,61233.0,61232.0,0.16121828]
[1727923217951,0.38522615,61233.0,61232.0,0.16121828]
[1727923218197,0.39922615,61233.0,61232.0,0.16121828]
[1727923218465,0.41322615,61233.0,61232.0,0.16121828]
[1727923218706,0.38761708,61233.0,61232.0,0.16121828]
[1727923218911,0.37361708,61233.0,61232.0,0.16121828]
[1727923219111,0.38761708,61233.0,61232.0,0.16121828]
[1727923219667,0.37361708,61233.0,61232.0,0.16121828]
[1727923220377,0.38761708,61233.0,61232.0,0.16121828]
[1727923220860,0.37361708,61233.0,61232.0,0.16121828]
[1727923221097,0.38761708,61233.0,61232.0,0.16121828]
[1727923221306,0.37361708,61233.0,61232.0,0.16121828]
[1727923222040,0.38761708,61233.0,61232.0,0.16121828]
[1727923223443,0.5346911,61233.0,61232.0,0.18667011]
[1727923223698,0.5346911,61233.0,61232.0,0.25521828]
[1727923223918,0.38761708,61233.0,61232.0,0.25521828]
[1727923224132,0.41322451,61233.0,61232.0,0.25521828]
[1727923224580,0.38761708,61233.0,61232.0,0.25521828]
[1727923227571,0.29985795,61233.0,61232.0,0.25521828]
[1727923227786,0.41322458,61233.0,61232.0,0.25521828]
[1727923229670,0.32348717,61233.0,61232.0,0.25521828]
[1727923229925,0.10982414,61233.0,61232.0,0.25521828]
[1727923230142,0.06362286,61233.0,61232.0,0.25521828]
[1727923230593,0.04962286,61233.0,61232.0,0.25521828]
[1727923230815,0.21293286,61233.0,61232.0,0.25521828]
[1727923231034,0.21293286,61233.0,61232.0,0.29707261]
[1727923231035,0.22293286,61233.0,61232.0,0.29707261]
[1727923231541,0.21293286,61233.0,61232.0,0.29707261]
[1727923231757,0.19893286,61233.0,61232.0,0.25521828]
[1727923232227,0.21093286,61233.0,61232.0,0.25521828]
[1727923232482,0.19893286,61233.0,61232.0,0.25521828]
[1727923232956,0.20493286,61233.0,61232.0,0.25521828]
[1727923233196,0.20093286,61233.0,61232.0,0.25521828]
[1727923233448,0.20793286,61233.0,61232.0,0.25521828]
[1727923233677,0.21493286,61233.0,61232.0,0.25521828]
[1727923233923,0.21493286,61233.0,61232.0,0.28074011]
[1727923234650,0.18932536,61233.0,61232.0,0.28074011]
[1727923235885,0.02601536,61233.0,61232.0,0.28074011]
[1727923236622,0.01701536,61233.0,61232.0,0.44405311]
[1727923236875,0.01001536,61233.0,61232.0,0.44405311]
[1727923237119,0.02401536,61233.0,61232.0,0.44405311]
[1727923237617,0.02401536,61233.0,61232.0,0.28074011]
[1727923237860,0.04961921,61233.0,61232.0,0.44405311]
[1727923239068,0.04961921,61233.0,61232.0,0.28074011]
[1727923239313,0.04961921,61233.0,61232.0,0.44405311]
[1727923240985,0.24504799,61244.0,61237.0,0.326598]
[1727923241238,0.24504799,61244.0,61241.0,0.1758]
[1727923241445,0.0506856,61247.0,61244.0,0.1758]
[1727923241668,0.000818,61247.0,61246.0,0.163275]
[1727923241918,0.000818,61247.0,61246.0,0.36133832]
[1727923242138,0.000818,61247.0,61246.0,0.49503221]
[1727923242574,0.000818,61247.0,61246.0,0.36133832]
[1727923242843,0.006818,61247.0,61246.0,0.36133832]
[1727923243064,0.000818,61247.0,61246.0,0.36133832]
[1727923243283,0.001818,61247.0,61246.0,0.36433832]
[1727923243497,0.001818,61247.0,61246.0,0.36533832]
[1727923246179,0.00375153,61247.0,61246.0,0.36533832]
[1727923246366,0.001818,61247.0,61246.0,0.36533832]
[1727923253549,0.001818,61247.0,61246.0,0.20206332]
[1727923253773,0.17462467,61247.0,61246.0,0.004]
[1727923254215,0.17462467,61247.0,61246.0,0.1795]
[1727923254679,0.17362467,61247.0,61246.0,0.1765]
[1727923254922,0.17662467,61247.0,61246.0,0.19415]
[1727923255145,0.17662467,61247.0,61246.0,0.0783]
[1727923255359,0.17362467,61247.0,61246.0,0.0783]
[1727923255587,0.20422421,61247.0,61246.0,0.0783]
[1727923255816,0.20922421,61247.0,61246.0,0.0783]
[1727923256031,0.19922421,61247.0,61246.0,0.0773]
[1727923256468,0.22122421,61247.0,61246.0,0.0793]
[1727923256674,0.20822421,61247.0,61246.0,0.0783]
[1727923257128,0.22022421,61247.0,61246.0,0.0793]
[1727923257791,0.21122421,61247.0,61246.0,0.0783]
[1727923258003,0.22022421,61247.0,61246.0,0.0793]
[1727923258481,0.20822421,61247.0,61246.0,0.0783]
[1727923258695,0.22022421,61247.0,61246.0,0.0793]
[1727923261692,0.22022421,61247.0,61246.0,0.002]
[1727923262192,0.32022421,61247.0,61246.0,0.002]
[1727923268598,0.29462467,61247.0,61246.0,0.002]
[1727923270384,0.45996331,61247.0,61246.0,0.002]
[1727923270627,0.48640952,61247.0,61246.0,0.002]
[1727923271081,0.48440952,61247.0,61246.0,0.002]
[1727923271516,0.41222901,61247.0,61246.0,0.002]
[1727923272781,0.53446008,61247.0,61246.0,0.002]
[1727923273307,0.53646008,61247.0,61246.0,0.002]
[1727923273575,0.41422901,61247.0,61246.0,0.002]